[Event "26th Womens ECCC 2022"]
[Site "Mayrhofen"]
[Date "2022.10.06"]
[Round "4.3"]
[White "Atalik, Ekaterina"]
[Black "Osmak, Yuliia"]
[Result "1/2-1/2"]
[ECO "D26"]
[WhiteElo "2406"]
[BlackElo "2428"]
[Annotator "TA"]
[PlyCount "61"]
[EventDate "2022.10.03"]
[EventType "team-tourn"]
[EventCountry "AUT"]
[SourceTitle "playchess.com"]
[Source "ChessBase"]
[SourceQuality "1"]
[TimeControl "40/5400+30:1800+30"]

{[%evp 10,61,32,35,26,23,29,9,31,12,21,9,12,0,16,0,0,14,9,-5,-5,-5,-5,-6,-7,-17,-13,-12,-8,-6,-10,-8,-6,-16,-17,-18,0,-14,-14,-21,-25,-13,-1,-1,-1,-1,-1,-1,-1,-4,-1,-1,-1,-1]} 1. d4 {[%emt 0:00:03]} d5 {[%emt 0:00:06]} 2. c4 {[%emt 0:00:21]} dxc4 {[%emt 0:00:08]} 3. Nf3 {[%emt 0:00:24]} Nf6 {[%emt 0:00:08]} 4. e3 {[%emt 0:00:18]} e6 {[%emt 0:00:12]} 5. Bxc4 {[%emt 0:00:19]} a6 {[%emt 0:00:03]} 6. O-O {[%emt 0:00:57]} Nbd7 {[%emt 0:00:06] D26: Queen's Gambit Accepted: 4 e3 e6 5 Bxc5 c5 sidelines.} 7. b3 {[%emt 0:00:56]} b6 {[%emt 0:01:23]} 8. Bb2 {[%emt 0:01:08]} Bb7 {[%emt 0:00:05] Inhibits d5.} 9. Nbd2 {[%emt 0:01:04][%cal Bb1d2,Bd2c4,Bc4e5][%mdl 32]} Be7 {[%emt 0:00:16]} 10. Be2 {[%emt 0:01:35]} O-O {[%emt 0:06:25]} 11. Nc4 {[%emt 0:02:34]} c5 {[%emt 0:03:59]} 12. Rc1 {[%emt 0:08:10]} b5 {[%emt 0:07:51]} 13. Nce5 {[%emt 0:00:52]} Rc8 {[%emt 0:01:27] [#]} 14. dxc5 $146 {[%emt 0:09:37]} (14. a4 {seems wilder.} bxa4 15. bxa4 cxd4 16. Bxd4 Bc5 17. Nxd7 Nxd7 18. Qd3) ({Predecessor:} 14. a4 bxa4 15. bxa4 Nxe5 16. Nxe5 Qb6 17. Nc4 Qa7 18. a5 Rcd8 19. Nb6 Qb8 20. Ba3 {1-0 (39) Grischuk,A (2795)-Karjakin,S (2770) Sochi 2014}) 14... Nxc5 {[%emt 0:08:26]} 15. Qd4 {[%emt 0:16:51]} Qxd4 {[%emt 0:08:10]} 16. Nxd4 {[%emt 0:01:51]} Nd5 {[%emt 0:04:47]} 17. Nd3 {[%emt 0:08:45]} Nxd3 {[%emt 0:17:13]} 18. Bxd3 {[%emt 0:00:06]} Bf6 {[%emt 0:00:58]} 19. Be4 {[%emt 0:06:48]} Ba8 {[%emt 0:03:46][%cal Od5e3]} 20. Bxd5 {[%emt 0:05:38]} Bxd5 {[%emt 0:00:23]} 21. f3 {[%emt 0:02:17]} Bb7 {[%emt 0:02:21]} 22. Kf2 {[%emt 0:01:01]} Rfd8 {[%emt 0:03:18]} 23. Rxc8 {[%emt 0:05:00]} Rxc8 {[%emt 0:05:14]} 24. Rc1 {[%emt 0:00:51]} Rxc1 {[%emt 0:03:24]} 25. Bxc1 {[%emt 0:00:04]} Bxd4 {[%emt 0:02:33] The position is equal.} 26. exd4 $11 {[%emt 0:00:20] KB-KB} a5 {[%emt 0:00:16]} 27. Bd2 {[%emt 0:01:52]} a4 {[%emt 0:00:16]} 28. bxa4 {[%emt 0:00:41]} bxa4 {[%emt 0:00:03]} 29. Bb4 {[%emt 0:00:21]} Bd5 {[%emt 0:00:04]} 30. a3 {[%emt 0:00:11]} f6 {[%emt 0:00:04]} 31. Ke3 {[%emt 0:00:45] An even fight not without its subleties.  Weighted Error Value: White=0.06 (flawless) /Black=0.03 (flawless)} 1/2-1/2

[Event "26th Womens ECCC 2022"]
[Site "Mayrhofen"]
[Date "2022.10.06"]
[Round "4.4"]
[White "Maltsevskaya, Aleksandra"]
[Black "Efroimski, Marsel"]
[Result "1-0"]
[ECO "B32"]
[WhiteElo "2389"]
[BlackElo "2462"]
[Annotator "TA"]
[PlyCount "65"]
[EventDate "2022.10.03"]
[EventType "team-tourn"]
[EventCountry "AUT"]
[SourceTitle "playchess.com"]
[Source "ChessBase"]
[SourceQuality "1"]
[TimeControl "40/5400+30:1800+30"]

{[%evp 10,65,33,0,16,0,0,0,97,95,84,85,111,109,118,75,137,133,115,116,186,161,273,217,198,212,228,140,158,140,151,122,122,122,105,70,253,26,31,31,268,252,390,374,695,674,689,688,1235,1206,1231,1229,1135,1180,1123,820,807,791]} 1. e4 {[%emt 0:00:03]} c5 {[%emt 0:00:03]} 2. Nf3 {[%emt 0:00:07][%cal Bg1f3,Bf3d4,Bd4b5,Bb5a3,Ba3c4][%mdl 32]} Nc6 {[%emt 0:00:03]} 3. d4 {[%emt 0:00:07]} cxd4 {[%emt 0:00:13]} 4. Nxd4 {[%emt 0:00:06]} e5 {[%emt 0:00:03]} 5. Nb5 {[%emt 0:01:37]} d6 {[%emt 0:00:04]} 6. a4 {[%emt 0:02:35]} a6 {[%emt 0:00:11] B32: Sicilian: Löwenthal and Kalashnikov Variations.} 7. N5a3 {[%emt 0:04:07]} Be6 {[%emt 0:00:04]} 8. Bc4 {[%emt 0:00:37]} Bxc4 {[%emt 0:03:00]} (8... Be7 $11 {keeps the balance.}) 9. Nxc4 $16 {[%emt 0:00:06] [#]} Rc8 $146 {[%emt 0:00:33]} ({Predecessor:} 9... Nf6 10. Nc3 Rc8 11. a5 Nd4 12. Nb6 Rc5 13. O-O Rxa5 14. Rxa5 Qxb6 15. Ra2 Be7 {1-0 (47) Recuero Guerra,J (2226)-Damnjanovic,R (2262) Chess.com INT 2020}) 10. O-O {[%emt 0:06:54] White is more active.} Nf6 {[%emt 0:01:05]} 11. Bg5 {[%emt 0:01:03]} Nd4 {[%emt 0:01:07]} 12. Nba3 {[%emt 0:07:40]} h6 {[%emt 0:11:18]} (12... Ne6 $142 13. Bxf6 Qxf6) 13. Bxf6 {[%emt 0:01:19]} Qxf6 {[%emt 0:00:02]} 14. c3 {[%emt 0:00:09]} Nc6 {[%emt 0:00:51]} (14... Ne6 $16) 15. b4 {[%emt 0:03:21][%cal Bb2b4,Bb4b5][%mdl 32]} Qg6 {[%emt 0:01:31]} (15... Qd8 {was worth a try.} 16. a5 Be7) 16. b5 {[%emt 0:02:36]} Nd8 {[%emt 0:00:29]} 17. Nb6 {[%emt 0:06:45]} Rc5 {[%emt 0:03:42]} 18. bxa6 {[%emt 0:03:16]} bxa6 {[%emt 0:00:07]} 19. Qd3 {[%emt 0:00:10]} ({Don't play} 19. Nac4 $6 Qxe4 20. Qxd6 (20. Nxd6+ Bxd6 21. Qxd6 Qc6 $11) 20... Qc6 $14) 19... Be7 {[%emt 0:00:57]} 20. Qxa6 {[%emt 0:12:31]} Qxe4 {[%emt 0:01:09] [#]} 21. a5 $1 {[%emt 0:00:07] And now Qa7 would win.} ({Much less strong is} 21. Qa7 $6 Qb7 22. Qxb7 Nxb7 $14) 21... Ne6 {[%emt 0:05:48]} 22. Qa7 {[%emt 0:06:10]} Qc6 {[%emt 0:11:29] [#] Prevents Qd7+.} (22... Rc7 $14 23. Qb8+ Bd8) 23. Nc2 $2 {[%emt 0:09:07]} (23. a6 $1 $18) 23... Nf4 $1 $11 {[%emt 0:03:47][%csl Gf4][%cal Rc6g2]} 24. Ne3 {[%emt 0:06:35] c4 is the strong threat. Dancing on a razor blade.} Bd8 $2 {[%emt 0:10:25]} (24... Rxc3 $14 25. Ned5 Nxd5 26. Nxd5 Qxd5 27. Qb8+ Bd8) 25. c4 $18 {[%emt 0:00:40] Threatens to win with Rfb1.} Bc7 {[%emt 0:05:36]} (25... O-O {was called for.} 26. Nd7 Rxa5 27. Rxa5 Bxa5 28. Nxf8 Bb6) 26. Ned5 {[%emt 0:07:29] Pair of Knights!} Ne6 $2 {[%emt 0:03:02]} (26... Nxd5 27. cxd5 Qb5 28. Qa8+ Bd8) 27. a6 {[%emt 0:01:15][%cal Ba5a6,Ba6a7][%mdl 32] White is clearly winning.} f6 {[%emt 0:03:49]} 28. Nxc7+ Nxc7 {[%emt 0:00:25]} 29. Qb8+ {[%emt 0:01:32]} Kf7 {[%emt 0:00:03]} 30. Qxh8 {[%emt 0:00:12]} Qxb6 {[%emt 0:00:03]} 31. a7 {[%emt 0:00:06]} Ra5 {[%emt 0:00:07]} 32. Rxa5 {[%emt 0:00:30]} Qxa5 {[%emt 0:00:03]} 33. Qb8 {[%emt 0:00:05] Weighted Error Value: White=0.27 (precise) /Black=0.68} 1-0

[Event "26th Womens ECCC 2022"]
[Site "Mayrhofen"]
[Date "2022.10.06"]
[Round "4.5"]
[White "Muzychuk, Anna"]
[Black "Salimova, Nurgyul"]
[Result "1/2-1/2"]
[ECO "C80"]
[WhiteElo "2534"]
[BlackElo "2415"]
[Annotator "TA"]
[PlyCount "79"]
[EventDate "2022.10.03"]
[EventType "team-tourn"]
[EventCountry "AUT"]
[SourceTitle "playchess.com"]
[Source "ChessBase"]
[SourceQuality "1"]
[TimeControl "40/5400+30:1800+30"]

{[%evp 21,79,4,18,0,0,0,0,0,0,0,0,0,0,0,0,-11,0,-8,-6,-23,0,0,0,0,8,0,6,0,15,16,0,0,13,27,27,10,32,27,28,0,0,0,25,17,37,25,35,21,20,25,131,137,164,0,58,0,0,0,0,0]} 1. e4 {[%emt 0:00:03]} e5 {[%emt 0:00:07]} 2. Nf3 {[%emt 0:00:07]} Nc6 {[%emt 0:00:06]} 3. Bb5 {[%emt 0:00:09][%cal Bf1b5,Bb5a4,Ba4b3][%mdl 32]} a6 {[%emt 0:00:06]} 4. Ba4 {[%emt 0:00:05]} Nf6 {[%emt 0:00:12]} 5. O-O {[%emt 0:00:13]} Nxe4 {[%emt 0:00:33]} 6. d4 {[%emt 0:01:46]} b5 {[%emt 0:00:07]} 7. Bb3 {[%emt 0:00:03]} d5 {[%emt 0:00:05]} 8. dxe5 {[%emt 0:00:41]} Be6 {[%emt 0:00:13]} 9. Be3 {[%emt 0:01:04]} Be7 {[%emt 0:10:27]} 10. c3 {[%emt 0:00:49]} O-O {[%emt 0:02:56]} 11. Nbd2 {[%emt 0:00:26]} Bg4 $1 {[%emt 0:12:21][%mdl 4] is now more promising than 11...Qd7.} 12. h3 {[%emt 0:01:30] C83: Open Ruy Lopez: 9 c3 Be7.} Nxd2 {[%emt 0:02:47]} 13. hxg4 {[%emt 0:00:30]} Nxf1 {[%emt 0:00:39]} 14. Kxf1 {[%emt 0:00:10]} Na5 {[%emt 0:00:55]} 15. Bxd5 {[%emt 0:00:20]} c6 {[%emt 0:00:21]} 16. Be4 {[%emt 0:00:07]} Qxd1+ {[%emt 0:10:56]} 17. Rxd1 {[%emt 0:00:08]} Nc4 {[%emt 0:04:31]} 18. Bc1 {[%emt 0:00:09]} Rad8 {[%emt 0:03:48]} 19. Re1 {[%emt 0:00:09]} c5 {[%emt 0:01:30]} 20. g3 {[%emt 0:04:59]} h6 {[%emt 0:04:40]} 21. Kg2 {[%emt 0:20:46] [#]} Rfe8 $146 {[%emt 0:18:47]} ({Predecessor:} 21... g5 22. b3 Nb6 23. Bb7 a5 24. Bc6 b4 25. cxb4 axb4 26. e6 Rd6 27. exf7+ Rxf7 {1-0 (59) Shevchenko,K (2633)-Vidit,S (2727) Chess.com INT 2021}) 22. b3 {[%emt 0:22:01]} Nb6 {[%emt 0:00:24]} 23. g5 {[%emt 0:04:14]} hxg5 {[%emt 0:04:29]} 24. Nxg5 {[%emt 0:01:15]} Nd5 {[%emt 0:12:25]} 25. Bh7+ {[%emt 0:24:20][%mdl 1024] White has compensation. This bishop pair is nice.} Kf8 {[%emt 0:00:15] ...Bxg5 is the strong threat.} 26. Ne4 {[%emt 0:00:47]} Nc7 {[%emt 0:03:07]} 27. Rh1 {[%emt 0:02:26]} Rd5 {[%emt 0:01:24]} 28. f4 {[%emt 0:05:18]} Red8 {[%emt 0:00:43] [#] Hoping for ...Rd1.} 29. Bf5 {[%emt 0:01:16][%cal Rh1h8]} Kg8 {[%emt 0:01:05] Against Rh8+} 30. Bh7+ {[%emt 0:00:18]} Kf8 {[%emt 0:00:04] aiming for ...Rd1.} 31. Bf5 {[%emt 0:01:44][%cal Rh1h8]} Kg8 {[%emt 0:00:05] Prevents Rh8+.} 32. Bg4 {[%emt 0:03:08] Against Rd1} c4 {[%emt 0:00:33]} 33. Be3 {[%emt 0:01:44]} Ne6 {[%emt 0:02:12]} 34. b4 {[%emt 0:01:49][%cal Bb3b4,Bb4a5][%mdl 32]} Rd3 {[%emt 0:01:16]} 35. Kf2 {[%emt 0:00:14]} a5 {[%emt 0:00:59]} (35... Nc7 $11) 36. bxa5 $16 {[%emt 0:02:28]} Ra8 {[%emt 0:01:21]} 37. f5 $2 {[%emt 0:00:07] [#]} (37. Bb6 $18) 37... Nc7 {[%emt 0:00:48]} (37... Nf8 $1 $11) 38. f6 {[%emt 0:00:46]} (38. Be2 $14) 38... gxf6 $1 $11 {[%emt 0:00:34]} 39. exf6 {[%emt 0:00:33]} Rxe3 {[%emt 0:00:31]} 40. Kxe3 {[%emt 0:00:58] Weighted Error Value: White=0.15 (very precise) /Black=0.12 (very precise)} 1/2-1/2

[Event "26th Womens ECCC 2022"]
[Site "Mayrhofen"]
[Date "2022.10.06"]
[Round "4.6"]
[White "Roebers, Eline"]
[Black "Stefanova, Antoaneta"]
[Result "1/2-1/2"]
[ECO "C70"]
[WhiteElo "2352"]
[BlackElo "2440"]
[Annotator "TA"]
[PlyCount "85"]
[EventDate "2022.10.03"]
[EventType "team-tourn"]
[EventCountry "AUT"]
[SourceTitle "playchess.com"]
[Source "ChessBase"]
[SourceQuality "1"]
[TimeControl "40/5400+30:1800+30"]

{[%evp 9,85,10,45,43,75,8,16,8,8,11,11,-6,-6,-17,34,56,63,69,60,59,62,45,137,132,122,129,128,0,0,-97,-79,-73,-67,-83,-65,-68,0,0,0,0,0,0,252,262,486,197,190,187,182,192,172,0,0,0,0,0,0,0,0,0,45,0,0,0,0,0,0,0,0,0,0,0,0,0,0,0,0,0]} 1. e4 {[%emt 0:00:02]} e5 {[%emt 0:00:04]} 2. Nf3 {[%emt 0:00:09]} Nc6 {[%emt 0:00:05]} 3. Bb5 {[%emt 0:00:07][%cal Bf1b5,Bb5a4,Ba4b3][%mdl 32]} a6 {[%emt 0:08:51]} 4. Ba4 {[%emt 0:00:16]} Nge7 {[%emt 0:00:12]} 5. Nc3 {[%emt 0:01:38]} d6 {[%emt 0:04:22]} 6. O-O {[%emt 0:01:37] C70: Ruy Lopez: 3...a6 4 Ba4, Norwegian and Delayed Schliemann.} h6 $1 {[%emt 0:03:58][%mdl 4] is currently scoring better than 6...Bd7.} 7. Re1 {[%emt 0:13:43]} (7. Nd5 $16) 7... g5 $11 {[%emt 0:01:52]} 8. d4 {[%emt 0:09:17] [#]} b5 $146 {[%emt 0:11:03]} ({Predecessor:} 8... g4 9. Nd5 Bg7 10. Nh4 b5 11. Bb3 Nxd4 12. g3 Nxd5 13. Bxd5 c6 14. c3 Nf3+ 15. Nxf3 cxd5 {0-1 (39) Matinian,N (2435)-Demchenko,A (2654) Chess.com INT 2022}) 9. Bb3 {[%emt 0:04:12] With the idea dxe5.} g4 {[%emt 0:09:05]} 10. Nd5 {[%emt 0:05:21][%cal Rd5f6]} (10. Be3 gxf3 11. Qxf3 Rh7 $17) 10... Bg7 {[%emt 0:10:02] Prevents Nf6+.} 11. Nxe7 {[%emt 0:00:15]} Nxe7 {[%emt 0:05:53]} (11... Qxe7 $11 12. Bd5 Bd7) 12. Nh4 $14 {[%emt 0:03:10]} ({Much worse is} 12. dxe5 gxf3 13. Qxf3 (13. exd6 Qxd6 14. Qxf3 O-O $17) 13... O-O $15) 12... exd4 {[%emt 0:08:01]} 13. Nf5 {[%emt 0:01:02]} Nxf5 {[%emt 0:01:47]} 14. exf5+ {[%emt 0:00:23]} Kf8 $1 {[%emt 0:00:16]} 15. Qxg4 {[%emt 0:05:53]} Bb7 {[%emt 0:10:53] [#]} (15... Qf6 $1 $14) 16. Qh5 $1 $16 {[%emt 0:06:27][%csl Gb3][%cal Rh5f7]} d5 {[%emt 0:06:49]} 17. Bf4 {[%emt 0:06:50]} c5 {[%emt 0:01:10]} 18. f6 $40 {[%emt 0:00:57][%mdl 128] Black needs to defend precisely. White is much more active. The black rooks are badly placed.} ({White should try} 18. a3 $16) 18... Bxf6 $11 {[%emt 0:01:19]} 19. Bxh6+ {[%emt 0:02:06] [#]} (19. a4 $11) 19... Rxh6 $1 $17 {[%emt 0:03:41]} 20. Qxh6+ {[%emt 0:00:04]} Bg7 {[%emt 0:00:04]} 21. Qf4 {[%emt 0:05:12]} c4 {[%emt 0:00:29]} 22. Re2 {[%emt 0:00:14][%cal Oa1e1]} d3 {[%emt 0:03:27]} ({Black should play} 22... Qb8 $15 23. Qf5 Qd8) 23. cxd3 $1 $11 {[%emt 0:00:41]} cxb3 {[%emt 0:00:03]} 24. axb3 {[%emt 0:01:59]} d4 {[%emt 0:01:33]} 25. Rae1 {[%emt 0:01:25]} Qd5 $2 {[%emt 0:04:07][%mdl 8192]} (25... Qb8 $11 {and Black is okay.} 26. Qg5 Qd6) 26. f3 $18 {[%emt 0:02:08]} Qxb3 $2 {[%emt 0:00:21]} (26... Kg8 {keeps fighting.} 27. Re8+ Rxe8 28. Rxe8+ Kh7) 27. Re8+ $2 {[%emt 0:07:20]} Rxe8 {[%emt 0:00:05]} 28. Qd6+ {[%emt 0:00:02]} Kg8 {[%emt 0:00:10]} 29. Rxe8+ {[%emt 0:00:03]} Kh7 {[%emt 0:00:01]} 30. Qe7 $2 {[%emt 0:07:15]} (30. Qf4 $18) 30... Qd1+ {[%emt 0:02:25]} 31. Kf2 $1 {[%emt 0:00:16]} Qd2+ {[%emt 0:00:14]} 32. Kg3 {[%emt 0:04:03] Really sharp!} Bd5 {[%emt 0:00:27] This bishop pair is nice.} 33. Qh4+ {[%emt 0:05:02]} Kg6 {[%emt 0:00:40] Strongly threatening ...Be6.} 34. Qg4+ {[%emt 0:01:50]} Qg5 {[%emt 0:00:11]} 35. h4 {[%emt 0:01:19][%mdl 64] Pin} Qxg4+ {[%emt 0:00:33] The position is equal.} 36. fxg4 {[%emt 0:00:43]} a5 {[%emt 0:02:55]} 37. Kf4 {[%emt 0:02:10]} Bxg2 {[%emt 0:00:52]} 38. Rb8 {[%emt 0:01:52]} b4 {[%emt 0:00:39]} 39. Rb5 {[%emt 0:00:43]} Bf1 {[%emt 0:00:23]} 40. Ke4 {[%emt 0:00:22]} Bg2+ {[%emt 0:00:24]} 41. Kf4 {[%emt 0:30:06]} Bf1 {[%emt 0:02:25]} 42. Ke4 {[%emt 0:00:00]} Bg2+ {[%emt 0:00:06]} 43. Kf4 {[%emt 0:00:00] Weighted Error Value: White=0.35/Black=0.29 (precise)} 1/2-1/2

[Event "26th Womens ECCC 2022"]
[Site "Mayrhofen"]
[Date "2022.10.06"]
[Round "4.7"]
[White "Cramling, Pia"]
[Black "Wagner, Dinara"]
[Result "1/2-1/2"]
[ECO "A46"]
[WhiteElo "2459"]
[BlackElo "2390"]
[Annotator "TA"]
[PlyCount "68"]
[EventDate "2022.10.03"]
[EventType "team-tourn"]
[EventCountry "AUT"]
[SourceTitle "playchess.com"]
[Source "ChessBase"]
[SourceQuality "1"]
[TimeControl "40/5400+30:1800+30"]

{[%evp 17,68,28,39,16,19,16,15,21,14,14,17,16,30,24,32,17,31,25,31,36,35,25,43,32,42,31,33,25,31,31,35,18,40,10,14,8,9,9,10,10,11,10,14,8,6,7,6,4,10,0,0,0,8]} 1. d4 {[%emt 0:00:10]} Nf6 {[%emt 0:00:04]} 2. Nf3 {[%emt 0:00:06]} d5 {[%emt 0:00:04]} 3. c4 {[%emt 0:00:14]} e6 {[%emt 0:00:07]} 4. e3 {[%emt 0:00:13]} c5 {[%emt 0:00:27]} 5. cxd5 {[%emt 0:00:27]} exd5 {[%emt 0:00:45]} 6. Bb5+ {[%emt 0:00:35]} Bd7 {[%emt 0:04:21]} 7. Bxd7+ {[%emt 0:00:46]} Nbxd7 {[%emt 0:00:04]} 8. dxc5 {[%emt 0:00:58]} Nxc5 {[%emt 0:01:20]} 9. O-O {[%emt 0:00:53]} Be7 {[%emt 0:01:58]} 10. Bd2 {[%emt 0:09:46] 10.b3 is the modern continuation. D30: Queen's Gambit Declined: Systems without Nc3.} O-O {[%emt 0:08:43]} 11. Bc3 {[%emt 0:00:27]} Nfe4 {[%emt 0:00:23]} 12. Bd4 {[%emt 0:00:19]} Bf6 {[%emt 0:02:00]} 13. Nbd2 {[%emt 0:07:19]} Rc8 {[%emt 0:31:41]} 14. Nb3 Nxb3 {[%emt 0:06:59]} 15. Bxf6 {[%emt 0:15:01]} Nxf6 {[%emt 0:00:12]} 16. Qxb3 {[%emt 0:00:16]} Qc7 {[%emt 0:00:17] [#]} 17. Nd4 $146 {[%emt 0:04:31]} ({Predecessor:} 17. Rfd1 Rfe8 18. h3 h6 19. Nd4 Red8 20. Nb5 Qb6 21. Rac1 Rc6 22. Nd4 Qxb3 23. axb3 {½-½ (41) Poluljahov,A (2532)-Lysyj,I (2314) St Petersburg 2001}) 17... Ng4 {[%emt 0:01:51][%csl Gg4][%cal Rc7h2] [#]} 18. g3 {[%emt 0:01:47]} Rfd8 {[%emt 0:01:25]} 19. Rad1 {[%emt 0:05:25]} Qe7 {[%emt 0:12:31]} 20. Rc1 {[%emt 0:11:31]} Qd7 {[%emt 0:05:04]} 21. Qb5 {[%emt 0:07:46]} Qxb5 {[%emt 0:03:35]} 22. Nxb5 {[%emt 0:00:03]} g6 {[%emt 0:00:10]} 23. Rfd1 {[%emt 0:08:01]} Nf6 {[%emt 0:00:47]} 24. a3 {[%emt 0:01:31]} a6 {[%emt 0:00:28]} 25. Nd4 {[%emt 0:03:56]} Kf8 {[%emt 0:01:22] The position is equal.} 26. Kf1 {[%emt 0:00:09]} Ke7 {[%emt 0:00:26]} 27. Ke2 {[%emt 0:00:07]} Ne4 {[%emt 0:05:00]} 28. Nb3 {[%emt 0:01:28]} Rxc1 {[%emt 0:03:18]} 29. Rxc1 $11 {[%emt 0:00:10][%mdl 4096] Endgame KRN-KRN} Nd6 {[%emt 0:00:03]} 30. Nd4 {[%emt 0:02:05]} Rc8 {[%emt 0:01:23]} 31. Rxc8 {[%emt 0:02:24]} Nxc8 {[%emt 0:00:07]} 32. Kd3 {[%emt 0:00:50]} Kd6 {[%emt 0:01:08]} 33. f3 {[%emt 0:05:46]} Nb6 {[%emt 0:00:25]} 34. b3 {[%emt 0:00:27] Prevents Nc4.} Nd7 {[%emt 0:00:05] Weighted Error Value: White=0.05 (flawless) /Black=0.04 (flawless)} 1/2-1/2